bitfinex-derivatives/quotes_SOLF0:USTF0_20251223
["timestamp","ask_amount","ask_price","bid_price","bid_amount"]
[1766513476450,3.31,123.22,123.15,7.3116]
[1766513476848,3.31,123.22,123.12,209.6799]
[1766513477557,0.05129541,123.18,123.16,0.06010398]
[1766513478741,0.05129541,123.18,123.13,95.92]
[1766513479757,0.05129541,123.18,123.14,0.05533368]
[1766513480346,3.36129541,123.18,123.14,0.05533368]
[1766513480551,3.36129541,123.18,123.11,103.2338]
[1766513481449,0.05129541,123.18,123.11,209.6933]
[1766513481755,0.05129541,123.18,123.13,0.05886109]
[1766513482753,0.00129541,123.18,123.13,113.81656109]
[1766513483547,0.00129541,123.18,123.14,7.3118]
[1766513483751,0.00129541,123.18,123.15,95.9]
[1766513484754,3.31,123.25,123.15,103.2113]
[1766513484960,3.31,123.24,123.15,95.9]
[1766513485965,0.05967251,123.21,123.18,0.05681903]
[1766513488362,3.31,123.27,123.19,95.88]
[1766513488868,3.31,123.26,123.19,95.88]
[1766513489249,0.05268661,123.24,123.21,0.056094]
[1766513493467,3.47268661,123.24,123.16,7.3107]
[1766513493663,3.42,123.24,123.16,103.1907]
[1766513493861,3.42,123.24,123.16,95.88]
[1766513494568,0.06097103,123.21,123.19,0.0531882]
[1766513495772,3.42,123.24,123.19,0.0531882]
[1766513496467,3.42,123.26,123.19,7.3623882]
[1766513496674,0.0569946,123.24,123.19,7.3623882]
[1766513497368,0.0569946,123.24,123.19,0.0531882]
[1766513497563,3.4769946,123.24,123.19,0.0531882]
[1766513497962,3.4769946,123.24,123.19,0.0031882]
[1766513499671,10.7272,123.23,123.19,0.0031882]
[1766513500273,3.42,123.22,123.19,0.0031882]
[1766513507966,3.4769946,123.24,123.19,0.0031882]
[1766513512467,0.0569946,123.24,123.19,0.0031882]
[1766513517179,3.4769946,123.24,123.19,0.0031882]
[1766513520286,3.4769946,123.24,123.19,7.3123882]
[1766513522991,0.0569946,123.24,123.2,7.3088]
[1766513524288,3.5169946,123.24,123.19,0.0031882]
[1766513525685,3.5169946,123.24,123.19,7.3124882]
[1766513526688,3.46,123.28,123.22,7.3075]
[1766513527591,3.46,123.28,123.24,0.06140067]
[1766513527789,0.05256571,123.26,123.24,0.06140067]
[1766513528090,3.46,123.28,123.24,7.36780067]
[1766513528287,3.46,123.3,123.24,0.06140067]
[1766513528482,6.34230784,123.29,123.24,0.06140067]
[1766513528998,0.06019461,123.28,123.24,0.06140067]
[1766513530187,3.52019461,123.28,123.24,0.06140067]
[1766513530494,3.52019461,123.28,123.2,7.3086]
[1766513530495,3.46,123.26,123.2,7.3086]
[1766513531387,0.05780485,123.24,123.22,0.05613051]
[1766513533192,0.05780485,123.24,123.19,103.1492]
[1766513534182,0.05780485,123.24,123.2,7.36386238]
[1766513535292,3.51780485,123.24,123.2,0.05516238]
[1766513539991,5.36256837,123.24,123.2,0.05516238]
[1766513548000,3.46,123.21,123.12,113.7581]
[1766513548201,1.84476352,123.2,123.14,95.84]
[1766513549007,0.0595023,123.18,123.16,0.05189733]
[1766513550701,3.46,123.21,123.16,0.05189733]
[1766513551207,1.84476352,123.2,123.16,0.05189733]
[1766513551907,0.05392289,123.19,123.16,0.05189733]
[1766513556797,0.05392289,123.19,123.16,7.36299733]
[1766513557804,5.07476352,123.23,123.17,7.3106]
[1766513558206,3.23,123.22,123.17,7.3106]
[1766513558607,3.23,123.22,123.14,209.5857]
[1766513558808,0.06107934,123.19,123.17,0.05862605]
[1766513560506,0.06107934,123.19,123.14,95.84]
[1766513560910,0.00107934,123.19,123.16,7.3111]
[1766513562109,0.00107934,123.19,123.16,7.36541445]
[1766513563021,0.00107934,123.19,123.17,7.3106]
[1766513565014,7.934e-05,123.21,123.18,7.3097]
[1766513565719,7.934e-05,123.21,123.16,7.36511445]
[1766513565915,1.84484286,123.21,123.16,7.36511445]
[1766513566119,0.06014775,123.2,123.16,7.36511445]
[1766513569111,0.06014775,123.2,123.17,7.3104]
[1766513570826,0.06014775,123.2,123.16,0.05431445]
[1766513571818,3.29014775,123.2,123.16,0.05431445]
[1766513572023,3.29014775,123.2,123.14,95.86]
[1766513572324,3.23,123.2,123.14,95.86]
[1766513573217,0.05266482,123.18,123.16,0.05148933]
[1766513574233,0.00266482,123.18,123.16,0.05148933]
[1766513574913,3.23,123.21,123.16,0.05148933]
[1766513575822,0.05179354,123.2,123.16,0.05148933]
[1766513578229,0.05179354,123.2,123.16,7.36258933]
[1766513578427,0.05179354,123.2,123.16,0.05148933]
[1766513579426,0.05179354,123.2,123.17,7.3105]
[1766513580733,3.23,123.31,123.2,113.6906]
[1766513580922,3.3,123.3,123.2,1.84476352]
[1766513581126,3.3,123.28,123.21,95.86]
[1766513581324,3.3,123.28,123.2,7.3086]
[1766513581530,3.3,123.28,123.21,95.86]
[1766513581831,0.05834032,123.26,123.23,0.05774559]
[1766513582327,3.35834032,123.26,123.21,95.86]
[1766513583336,3.35834032,123.26,123.22,0.05343636]
[1766513584635,3.35834032,123.26,123.19,95.86]
[1766513584636,3.3,123.24,123.19,95.86]
[1766513585225,3.3,123.24,123.19,103.1692]
[1766513585735,0.06141987,123.23,123.2,0.05703648]
[1766513586632,0.06141987,123.23,123.2,7.36563648]
[1766513587132,0.06141987,123.23,123.15,113.7303]
[1766513587327,5.14476352,123.24,123.16,95.84]
[1766513587328,1.84476352,123.22,123.16,95.84]
[1766513587529,5.14476352,123.22,123.16,95.84]
[1766513587725,5.14476352,123.22,123.16,103.151]
[1766513588126,0.0598667,123.2,123.18,0.05608759]
[1766513589341,84.41165704,123.78,123.18,113.76528759]
[1766513589342,1.84476352,123.28,123.18,113.76528759]
[1766513589541,9.14846352,123.29,123.19,1.84476352]
[1766513589836,7.302,123.32,123.22,0.2073]
[1766513590041,1.84476352,123.31,123.21,115.52586352]
[1766513590240,1.84476352,123.31,123.26,0.00474948]
[1766513590241,0.05122624,123.28,123.26,0.00474948]
[1766513591136,0.00122624,123.28,123.26,0.00474948]
[1766513591531,97.66476352,123.33,123.26,3.32474948]
[1766513591741,1.84476352,123.33,123.26,3.32474948]
[1766513591940,1.84476352,123.35,123.26,3.32474948]
[1766513592136,1.84476352,123.35,123.26,3.32]
[1766513592643,0.05459755,123.32,123.29,0.05673935]
[1766513597548,5.19936107,123.32,123.24,124.2787]
[1766513597739,3.3,123.32,123.25,99.14]
[1766513598140,3.3,123.32,123.26,3.32]
[1766513598550,5.14476352,123.34,123.26,3.32]
[1766513598749,0.00181688,123.3,123.28,0.06134003]
[1766513601044,0.00181688,123.3,123.29,95.8]
[1766513601244,5.14476352,123.36,123.29,95.8]
[1766513601445,5.14476352,123.36,123.29,99.12]
[1766513601744,3.3,123.36,123.29,99.12]
[1766513602149,0.0609165,123.34,123.31,0.06239512]
[1766513605459,0.0009165,123.34,123.31,3.38239512]
[1766513608058,0.0009165,123.34,123.32,95.78]
[1766513608458,0.0009165,123.34,123.32,99.1]
[1766513608658,99.1,123.39,123.32,99.1]
[1766513609761,0.00278764,123.37,123.34,3.37428579]
[1766513610071,3.3,123.41,123.35,95.78]
[1766513610958,0.05666244,123.39,123.37,0.05816586]
[1766513611160,3.46,123.41,123.34,99.18]
[1766513611362,6.33673257,123.4,123.34,99.16]
[1766513611662,13.63383257,123.4,123.34,99.16]
[1766513611867,2.87673257,123.38,123.34,95.76]
[1766513612169,0.05737776,123.37,123.35,0.05762186]
[1766513613968,0.05737776,123.37,123.32,3.4]
[1766513614366,2.87673257,123.36,123.29,99.16]
[1766513614560,6.23673257,123.36,123.3,3.4]
[1766513614965,0.05457465,123.34,123.32,0.05368381]
[1766513620559,0.05457465,123.34,123.3,3.4]
[1766513620960,0.00457465,123.34,123.3,3.4]
[1766513621976,0.00457465,123.34,123.31,0.05470322]
[1766513626580,3.36457465,123.34,123.31,0.05470322]
[1766513627481,0.00457465,123.34,123.31,0.05470322]
[1766513631974,3.36,123.33,123.24,3.4]
[1766513632175,2.87673257,123.3,123.24,3.4]
[1766513632781,6.23673257,123.3,123.24,3.4]
[1766513632977,0.05907772,123.28,123.26,0.05388351]
[1766513638086,7.3015,123.33,123.26,0.05388351]
[1766513638296,3.36,123.34,123.26,3.45388351]
[1766513638589,3.36,123.34,123.26,3.4]
[1766513639088,6.23673257,123.34,123.26,3.4]
[1766513639281,0.05609205,123.31,123.29,0.05432342]
[1766513641991,3.30609205,123.31,123.24,3.51]
[1766513642893,3.30609205,123.31,123.26,0.05974411]
[1766513645294,3.25,123.29,123.23,95.78]
[1766513645494,3.25,123.29,123.22,10.8172]
[1766513646393,0.05168445,123.27,123.24,0.05921702]
[1766513648111,3.30168445,123.27,123.2,99.29]
[1766513648296,2.87673257,123.26,123.2,99.29]
[1766513649101,0.05502129,123.24,123.22,0.05996435]
[1766513650810,3.25,123.23,123.16,3.51]
[1766513650998,6.12673257,123.23,123.16,3.51]
[1766513653610,0.00142704,123.23,123.2,3.51]
[1766513653807,0.00142704,123.23,123.2,3.57183462]
[1766513659311,0.00142704,123.23,123.2,10.88043462]
[1766513660106,0.00142704,123.23,123.21,3.51]
[1766513661909,0.00142704,123.23,123.2,0.06183462]
[1766513662411,0.00142704,123.23,123.2,3.57183462]
[1766513664308,0.00142704,123.23,123.2,10.88053462]
[1766513666511,0.00142704,123.23,123.2,106.70053462]
[1766513666812,0.00142704,123.23,123.2,99.39183462]
[1766513670918,0.00142704,123.23,123.2,106.70043462]
[1766513674218,5.33419693,123.29,123.22,3.26]
[1766513674417,3.49,123.29,123.23,99.08]
[1766513675323,0.05920304,123.27,123.25,0.05397381]
[1766513676626,3.54920304,123.27,123.23,95.82]
[1766513677634,3.54920304,123.27,123.24,0.06068077]
[1766513693947,3.54920304,123.27,123.23,84.20151698]
[1766513694245,3.54920304,123.27,123.21,3.26]
[1766513694842,3.54920304,123.27,123.23,0.05856132]
[1766513701447,0.05920304,123.27,123.23,3.58856132]
[1766513705050,1.90339997,123.27,123.23,0.05856132]
[1766513706447,1.90339997,123.27,123.2,95.82]
[1766513707553,7.3056,123.26,123.22,0.05687901]
[1766513707847,1.84419693,123.25,123.22,0.05687901]
[1766513708153,1.84419693,123.25,123.17,3.53]
[1766513708348,1.84419693,123.21,123.15,3.53]
[1766513709047,0.05653268,123.19,123.17,0.05210347]
[1766513709845,128.2075,123.3,123.17,3.58210347]
[1766513710045,1.84419693,123.25,123.17,3.53]
[1766513710857,0.05168891,123.22,123.2,0.0605181]
[1766513717967,1.84419693,123.25,123.2,0.0605181]
[1766513718164,113.6015,123.3,123.2,3.5905181]
[1766513718362,121.03560765,123.32,123.2,3.53]
[1766513718363,8.02931848,123.29,123.2,3.53]
[1766513718563,1.84419693,123.29,123.22,3.53]
[1766513718862,0.05872023,123.27,123.24,0.05698613]
[1766513724666,7.3028,123.31,123.24,3.58698613]
[1766513724857,2.88034514,123.34,123.24,3.58698613]
[1766513725060,243.70780837,123.38,123.24,3.58698613]
[1766513725061,104.85516618,123.35,123.25,3.53]
[1766513725368,98.66034514,123.35,123.28,3.53]
[1766513725669,0.06142656,123.33,123.3,0.06189842]
[1766513725865,2.9417717,123.33,123.3,0.00189842]
[1766513726969,10.2430717,123.33,123.3,0.00189842]
[1766513727564,0.06142656,123.33,123.3,0.00189842]
[1766513728362,115.57520837,123.38,123.3,3.53189842]
[1766513728562,100.70005351,123.38,123.3,3.53]
[1766513729467,0.05119903,123.35,123.33,0.06153954]
[1766513729968,0.05119903,123.35,123.33,0.00153954]
[1766513734571,2.88034514,123.39,123.33,0.00153954]
[1766513734770,2.88034514,123.39,123.33,3.28153954]
[1766513735676,0.05311352,123.37,123.33,3.28153954]
[1766513736775,0.05311352,123.37,123.33,0.00153954]
[1766513737970,2.93345866,123.37,123.33,0.00153954]
[1766513739079,2.93345866,123.37,123.29,3.28]
[1766513739270,10.17914514,123.37,123.29,3.28]
[1766513739775,7.2977,123.39,123.31,3.28]
[1766513739979,0.05516856,123.36,123.34,0.05134467]
[1766513740487,0.05516856,123.36,123.31,3.28]
[1766513740675,2.9355137,123.36,123.31,3.28]
[1766513741466,2.9355137,123.36,123.32,0.0623272]
[1766513743070,0.05516856,123.36,123.32,0.0623272]
[1766513743474,2.9355137,123.36,123.32,0.0623272]
[1766513743983,2.88034514,123.34,123.29,3.28]
[1766513744877,0.0608385,123.33,123.3,0.05153717]
[1766513749087,0.0608385,123.33,123.3,3.33153717]
[1766513749088,0.0008385,123.33,123.3,3.33153717]
[1766513752684,7.2977,123.39,123.31,3.28]
[1766513752985,2.88034514,123.39,123.31,3.28]
[1766513753582,0.05838345,123.36,123.34,0.06218619]
[1766513753778,0.05598943,123.36,123.34,0.0592106]
[1766513757185,95.72,123.42,123.34,3.3392106]
[1766513757387,113.4779,123.44,123.34,3.3392106]
[1766513757388,2.88034514,123.44,123.34,3.28]
[1766513757689,2.88034514,123.44,123.35,3.28]
[1766513758277,97.80730134,123.47,123.38,3.34159488]
[1766513758278,0.00051988,123.41,123.38,3.34159488]
[1766513758485,2.88034514,123.45,123.38,3.28]
[1766513758989,2.88034514,123.43,123.36,3.28]
[1766513759191,0.05962571,123.41,123.38,0.05401413]
[1766513761286,2.88034514,123.39,123.34,95.76]
[1766513761591,2.88034514,123.39,123.31,3.44]
[1766513762284,0.05312701,123.36,123.34,0.05900687]
[1766513763595,2.88034514,123.39,123.34,0.05900687]
[1766513764390,0.05365001,123.38,123.34,0.05900687]
[1766513765599,0.05365001,123.38,123.34,3.49900687]
[1766513765988,0.05365001,123.38,123.34,10.79930687]
[1766513766498,2.88034514,123.42,123.35,3.44]
[1766513767497,2.08730134,123.47,123.37,3.49391312]
[1766513767694,9.06311949,123.46,123.38,3.44]
[1766513768098,9.06311949,123.46,123.39,3.44]
[1766513768302,6.18678781,123.45,123.39,3.44]
[1766513768497,0.05758458,123.43,123.41,0.05109759]
[1766513773395,2.88034514,123.46,123.41,0.05109759]
[1766513774407,0.05133224,123.45,123.41,3.49109759]
[1766513775104,0.05133224,123.45,123.41,0.05109759]
[1766513776999,2.88034514,123.44,123.37,3.44]
[1766513777201,2.88034514,123.47,123.37,3.44]
[1766513777900,0.05562292,123.43,123.41,0.0597869]
[1766513778101,2.88034514,123.47,123.41,3.4997869]
[1766513778301,10.17324514,123.47,123.41,3.4997869]
[1766513779107,0.05724775,123.45,123.41,3.4997869]
[1766513781496,2.88034514,123.5,123.42,3.44]
[1766513782399,0.05888077,123.47,123.45,0.06170656]
[1766513782601,2.88034514,123.5,123.45,0.06170656]
[1766513783795,209.0467,123.54,123.45,3.50170656]
[1766513783796,2.88034514,123.52,123.45,3.50170656]
[1766513784006,1.83653574,123.52,123.45,3.44]
[1766513784194,1.83653574,123.52,123.47,3.44]
[1766513784905,0.05938809,123.51,123.48,0.06186573]
[1766513785297,1.83653574,123.53,123.48,3.50186573]
[1766513785905,1.83653574,123.54,123.48,3.50186573]
[1766513786203,0.02982934,123.52,123.5,0.05835429]
[1766513788011,7.2873,123.57,123.5,0.05835429]
[1766513788206,1.83653574,123.55,123.48,3.44]
[1766513789012,1.83653574,123.55,123.5,0.0513675]
[1766513790304,1.83653574,123.56,123.5,3.4913675]
[1766513791010,1.83653574,123.57,123.5,3.4913675]
[1766513791212,1.83653574,123.57,123.52,0.05510469]
[1766513791410,1.83653574,123.57,123.52,3.59510469]
[1766513792210,1.83653574,123.58,123.52,3.59510469]
[1766513792410,1.83653574,123.58,123.54,0.05439208]
[1766513797412,7.285,123.61,123.54,3.47439208]
[1766513797607,1.83653574,123.6,123.54,3.47439208]
[1766513798212,7.285,123.61,123.54,3.47439208]
[1766513798407,1.83653574,123.6,123.54,3.47439208]
[1766513801731,1.83653574,123.6,123.55,3.42]
[1766513803215,113.2866,123.65,123.56,3.42]
[1766513803216,7.2836,123.63,123.56,3.42]
[1766513803517,1.83653574,123.62,123.58,0.06062114]
[1766513806718,208.8334,123.66,123.58,0.06062114]
[1766513807023,1.83653574,123.63,123.61,0.00224414]
[1766513807227,1.83653574,123.63,123.56,3.42]
[1766513807412,1.83653574,123.61,123.56,3.42]
[1766513807613,1.83653574,123.59,123.53,3.42]
[1766513808017,9.12243574,123.59,123.53,3.42]
[1766513808222,0.05224414,123.57,123.55,0.05708209]
[1766513811223,1.83653574,123.61,123.55,0.05708209]
[1766513812521,1.83653574,123.61,123.55,3.47708209]
[1766513814422,1.83653574,123.61,123.56,3.42]
[1766513815224,1.83653574,123.63,123.56,3.42]
[1766513815539,1.83653574,123.63,123.58,0.05806522]
[1766513819328,1.83653574,123.59,123.51,3.42]
[1766513819534,1.83653574,123.59,123.52,3.42]
[1766513820339,0.05497904,123.57,123.54,0.05705916]
[1766513820838,1.83653574,123.61,123.54,3.47705916]
[1766513821640,1.83653574,123.63,123.56,3.33]
[1766513821842,1.83653574,123.63,123.58,0.05890447]
[1766513822135,7.2829,123.64,123.58,0.05890447]
[1766513822328,1.83653574,123.64,123.58,3.38890447]
[1766513822734,9.11943574,123.64,123.58,3.38890447]
[1766513823241,1.83653574,123.64,123.58,3.38890447]
[1766513823844,1.83653574,123.64,123.59,3.33]
[1766513824537,9.11953574,123.64,123.58,0.05890447]
[1766513825237,1.83653574,123.62,123.58,0.05890447]
[1766513825434,1.83653574,123.62,123.54,98.89]
[1766513825435,0.05469944,123.61,123.54,98.89]
[1766513825630,0.05469944,123.61,123.55,3.33]
[1766513826040,0.05469944,123.61,123.57,3.33]
[1766513826433,0.05469944,123.61,123.58,0.05370057]
[1766513826833,1.83653574,123.63,123.58,3.38370057]
[1766513827034,7.2827,123.65,123.58,3.38370057]
[1766513827035,1.83653574,123.65,123.58,3.38370057]
[1766513828139,6.17911679,123.66,123.59,3.33]
[1766513828445,1.83653574,123.66,123.61,0.06080835]
[1766513829342,1.83653574,123.67,123.61,3.39080835]
[1766513829542,6.18710074,123.69,123.61,3.39080835]
[1766513829739,1.83653574,123.69,123.64,0.05140505]
[1766513830241,1.83653574,123.7,123.64,3.38140505]
[1766513830557,1.83653574,123.7,123.66,0.05284059]
[1766513830734,1.83653574,123.68,123.62,3.33]
[1766513830934,1.83653574,123.66,123.59,3.33]
[1766513831136,1.83653574,123.66,123.59,98.89]
[1766513831451,9.11713574,123.68,123.61,3.33]
[1766513831648,1.83653574,123.68,123.61,3.33]
[1766513831848,1.83653574,123.68,123.63,3.38993642]
[1766513832034,95.52,123.72,123.63,3.38993642]
[1766513832234,6.18409628,123.71,123.63,3.33]
[1766513832449,1.83653574,123.7,123.64,3.33]
[1766513832949,1.83653574,123.7,123.66,0.05529818]
[1766513833144,95.52,123.72,123.66,0.05529818]
[1766513833450,1.83653574,123.71,123.66,0.05529818]
[1766513833755,1.83653574,123.71,123.67,0.05385021]
[1766513836245,1.83653574,123.72,123.67,0.05385021]
[1766513836448,1.83653574,123.72,123.68,0.06190609]
[1766513836651,1.83653574,123.74,123.68,3.39190609]
[1766513837165,95.5,123.76,123.68,3.39190609]
[1766513837342,1.83653574,123.73,123.71,0.00308023]
[1766513837549,1.83653574,123.73,123.65,3.33]
[1766513837741,1.83653574,123.71,123.65,3.33]
[1766513837953,1.83653574,123.73,123.65,3.33]
[1766513838259,1.83653574,123.73,123.66,10.6115]
[1766513838441,0.05849284,123.71,123.68,0.05665051]
[1766513838646,0.05849284,123.71,123.62,115.13823574]
[1766513838647,1.83653574,123.69,123.62,3.33]
[1766513839653,0.05735169,123.67,123.64,0.05110271]
[1766513840560,1.83653574,123.71,123.64,10.66370271]
[1766513841359,1.83653574,123.71,123.64,3.38110271]
[1766513841651,1.8949237,123.69,123.64,3.38110271]
[1766513844060,0.05838796,123.69,123.64,3.38110271]
[1766513844657,7.33838796,123.69,123.64,0.05110271]
[1766513845757,7.2807,123.68,123.64,0.05110271]
[1766513845948,0.05838796,123.69,123.64,0.05110271]
[1766513846147,0.05838796,123.69,123.64,3.38110271]
[1766513846356,0.05838796,123.69,123.64,10.66370271]
[1766513846558,0.05838796,123.69,123.64,3.38110271]
[1766513847055,0.05838796,123.69,123.65,10.6121]
[1766513847261,4.71377662,123.78,123.68,3.33]
[1766513847453,7.57497052,123.78,123.68,3.33]
[1766513848062,7.2755,123.77,123.69,10.6095]
[1766513848266,4.71377662,123.78,123.72,0.05972521]
[1766513849065,2.8611939,123.77,123.72,0.05972521]
[1766513850351,2.8611939,123.75,123.69,98.83]
[1766513850551,2.8611939,123.75,123.69,95.5]
[1766513851551,0.05523635,123.73,123.71,0.05699253]
[1766513852063,113.1049,123.85,123.73,3.33]
[1766513852262,6.15378067,123.84,123.74,3.33]
[1766513852460,7.43261183,123.85,123.75,3.33]
[1766513852767,7.43261183,123.85,123.75,116.5169]
[1766513852967,7.43261183,123.85,123.79,0.06056387]
[1766513853274,113.041,123.92,123.79,3.39056387]
[1766513853454,113.0468,123.91,123.84,0.05340721]
[1766513853653,7.43261183,123.89,123.86,0.05912006]
[1766513853858,7.43261183,123.89,123.79,3.33]
[1766513854160,102.85261183,123.89,123.79,3.33]
[1766513854362,215.91551183,123.89,123.79,3.33]
[1766513854866,0.06014145,123.85,123.76,3.43]
[1766513855059,120.52231183,123.86,123.76,3.43]
[1766513855671,7.43261183,123.86,123.76,3.43]
[1766513855870,7.43261183,123.86,123.8,0.0621335]
[1766513855871,0.05906176,123.82,123.8,0.0621335]
[1766513856257,102.6888,123.88,123.8,0.0621335]
[1766513856562,120.47461183,123.91,123.79,3.43]
[1766513856867,7.43261183,123.91,123.79,3.43]
[1766513857067,113.0628,123.89,123.79,3.43]
[1766513857263,120.48101183,123.91,123.83,0.05445126]
[1766513857471,120.48101183,123.91,123.79,3.43]
[1766513857762,120.3316,123.89,123.79,3.43]
[1766513857963,113.0818,123.87,123.79,3.43]
[1766513858265,113.0818,123.87,123.82,0.05947826]
[1766513858967,113.0818,123.87,123.79,3.43]
[1766513859263,7.2693,123.87,123.79,3.43]
[1766513859865,120.3482,123.87,123.79,3.43]
[1766513860066,0.05397124,123.84,123.82,0.00447876]
[1766513860765,0.05397124,123.84,123.76,98.85]
[1766513861064,14.70331183,123.85,123.77,3.43]
[1766513861262,7.2707,123.85,123.77,3.43]
[1766513861862,0.06201563,123.82,123.8,0.05581115]
[1766513862265,0.06201563,123.82,123.76,95.42]
[1766513862466,0.06201563,123.82,123.76,98.85]
[1766513862669,0.06201563,123.82,123.77,3.43]
[1766513863275,7.43261183,123.87,123.78,3.48720956]
[1766513863575,215.7203,123.88,123.78,3.43]
[1766513863767,110.08161183,123.88,123.78,3.43]
[1766513863968,7.2695,123.87,123.78,3.43]
[1766513864279,0.05530391,123.84,123.81,0.06083377]
[1766513864773,0.05530391,123.84,123.81,0.00083377]
[1766513864961,0.05530391,123.84,123.75,98.83]
[1766513865166,120.53281183,123.85,123.75,98.83]
[1766513865678,7.43261183,123.85,123.76,3.43]
[1766513865977,0.05716444,123.82,123.79,0.05753474]
[1766513866774,0.05716444,123.82,123.75,106.1059]
[1766513866775,0.05716444,123.82,123.75,98.83]
[1766513867075,0.05716444,123.82,123.75,3.43]
[1766513867573,0.05716444,123.82,123.74,3.43]
[1766513867769,0.00114994,123.79,123.77,0.05974144]
[1766513867969,113.0993,123.85,123.75,3.43]
[1766513868572,7.2707,123.85,123.76,3.43]
[1766513868774,0.05879369,123.82,123.79,0.06198788]
[1766513871081,95.36,123.86,123.79,0.06198788]
[1766513871774,102.63,123.86,123.79,0.06198788]
[1766513871974,95.36,123.86,123.79,0.06198788]
[1766513872174,0.05613264,123.84,123.79,0.06198788]
[1766513872574,0.05613264,123.84,123.79,3.49198788]
[1766513873373,0.05613264,123.84,123.8,3.43]
[1766513873979,0.05613264,123.84,123.79,0.06198788]
[1766513874975,7.48874447,123.84,123.75,3.43]
[1766513875181,14.70411183,123.84,123.75,3.43]
[1766513875982,0.05832171,123.81,123.78,0.05736201]
[1766513880791,0.05832171,123.81,123.75,3.43]
[1766513881004,7.43261183,123.78,123.7,3.34]
[1766513881190,7.43261183,123.78,123.7,10.6188]
[1766513881495,7.43261183,123.78,123.7,3.34]
[1766513881692,7.43261183,123.78,123.67,98.74]
[1766513881883,0.05746286,123.74,123.71,0.06186707]
[1766513885278,0.05746286,123.74,123.67,98.74]
[1766513885684,0.05746286,123.74,123.64,3.34]
[1766513885893,7.43261183,123.75,123.64,3.34]
[1766513886395,0.05194232,123.71,123.68,0.0538528]
[1766513887394,0.05194232,123.71,123.64,3.34]
[1766513887791,0.05194232,123.71,123.65,10.6219]
[1766513888401,0.05194232,123.71,123.67,0.06109636]
[1766513889097,0.05194232,123.71,123.67,0.00109636]
[1766513889294,7.33084232,123.71,123.67,0.00109636]
[1766513890094,7.33084232,123.71,123.63,98.74]
[1766513890296,7.2789,123.71,123.63,98.74]
[1766513890493,7.43261183,123.69,123.61,3.34]
[1766513891097,0.05694561,123.66,123.64,0.06151295]
[1766513891606,0.05694561,123.66,123.61,3.34]
[1766513891997,0.05694561,123.66,123.58,98.76]
[1766513892193,7.43261183,123.66,123.58,98.76]
[1766513892695,0.05800725,123.63,123.61,0.05877473]
[1766513892899,7.43261183,123.66,123.61,0.05877473]
[1766513893204,102.83261183,123.69,123.61,3.39877473]
[1766513893400,7.2806,123.68,123.61,3.34]
[1766513893597,95.4,123.69,123.61,3.34]
[1766513894002,0.06159486,123.66,123.64,0.06125418]
[1766513894301,0.06159486,123.66,123.64,0.00125418]
[1766513895003,0.06159486,123.66,123.58,3.34]
[1766513895302,7.43261183,123.67,123.58,3.34]
[1766513895507,7.43261183,123.67,123.58,10.6261]
[1766513895895,0.05768217,123.64,123.61,0.05130661]
[1766513896297,7.43261183,123.67,123.61,0.05130661]
[1766513897206,95.42,123.69,123.61,0.05130661]
[1766513897404,0.05596668,123.66,123.64,0.05291946]
[1766513898312,7.279,123.71,123.64,0.05291946]
[1766513898603,216.09241183,123.72,123.64,0.05291946]
[1766513898909,216.09241183,123.72,123.62,3.34]
[1766513899411,0.05568072,123.68,123.66,0.00422018]
[1766513903514,0.05568072,123.68,123.62,3.34]
[1766513904405,7.33628072,123.68,123.6,3.34]
[1766513904706,216.11941183,123.71,123.64,0.05225563]
[1766513904908,216.11941183,123.71,123.61,3.34]
[1766513905606,0.05158032,123.67,123.65,0.05919569]
[1766513906811,0.05158032,123.67,123.61,3.34]
[1766513907510,4.63040563,123.67,123.59,3.34]
[1766513907712,0.05519054,123.64,123.62,0.05497738]
[1766513910714,0.05519054,123.64,123.62,0.00497738]
[1766513911311,0.05519054,123.64,123.57,3.21]
[1766513911513,4.57882531,123.65,123.57,3.21]
[1766513912214,208.7328,123.66,123.56,102.7872]
[1766513912215,0.00056814,123.62,123.6,0.05933995]
[1766513913519,0.00056814,123.62,123.6,3.26933995]
[1766513917927,0.00056814,123.62,123.6,0.05933995]
[1766513919634,0.00056814,123.62,123.51,4.57882531]
[1766513919635,0.00056814,123.62,123.54,3.21]